bitfinex/quotes_ETHUSD_20260107
["timestamp","ask_amount","ask_price","bid_price","bid_amount"]
[1767786273310,3.09880332,3227.1,3226.4,0.93123221]
[1767786274310,6.19713072,3227.3,3226.4,0.93123221]
[1767786274612,6.77773695,3227.3,3226.4,0.93123221]
[1767786275182,3.09875739,3227.1,3226.4,0.93123221]
[1767786277199,3.67936362,3227.1,3226.4,0.88123221]
[1767786277515,0.6778028,3227.0,3226.4,0.88123221]
[1767786279695,3.77674755,3227.0,3226.4,0.88123221]
[1767786282329,0.001,3226.8,3226.4,0.88123221]
[1767786285006,0.001,3226.8,3226.2,3.09960674]
[1767786285007,0.63160623,3226.8,3226.2,3.09960674]
[1767786285615,0.63160623,3226.8,3226.1,3.91269445]
[1767786285815,0.63160623,3226.8,3226.2,0.39126945]
[1767786286015,0.63160623,3226.8,3226.3,0.92804497]
[1767786286016,0.001,3226.8,3226.3,0.92804497]
[1767786287909,0.001,3226.8,3226.3,1.85827608]
[1767786288807,0.001,3226.8,3226.4,0.92804497]
[1767786290035,0.001,3226.8,3226.5,0.92804497]
[1767786290236,0.001,3226.8,3226.3,0.92804497]
[1767786290735,0.001,3226.8,3226.4,0.92804497]
[1767786291106,0.001,3226.8,3226.0,0.813]
[1767786291107,0.99792355,3226.8,3225.4,0.002]
[1767786291311,3.97721516,3226.0,3224.9,0.002]
[1767786291507,0.99692355,3226.1,3225.2,3.10055547]
[1767786291816,0.99692355,3226.1,3225.1,4.02869463]
[1767786292022,0.99692355,3226.1,3225.2,1.85852709]
[1767786292225,0.99692355,3226.1,3225.2,0.92804497]
[1767786292435,0.99692355,3226.1,3225.2,0.40597024]
[1767786292736,0.99692355,3226.1,3225.2,1.33401521]
[1767786293035,3.09981401,3226.0,3225.3,0.92804497]
[1767786293341,4.09673756,3226.0,3225.3,0.92804497]
[1767786293629,4.09673756,3226.0,3225.1,1.85856461]
[1767786293630,0.99692355,3225.9,3225.1,1.85856461]
[1767786294823,4.09702585,3225.7,3224.9,0.93004497]
[1767786295027,0.99692355,3225.6,3224.9,1.74304497]
[1767786295368,0.99692355,3225.6,3224.9,0.815]
[1767786295525,0.99692355,3225.6,3224.9,0.002]
[1767786296844,4.09719775,3225.6,3224.9,0.002]
[1767786297044,0.99692355,3225.5,3224.9,0.002]
[1767786298936,0.99692355,3225.4,3224.9,0.002]
[1767786300355,0.813,3226.2,3225.0,0.90633031]
[1767786300356,0.93067264,3226.1,3225.0,0.90633031]
[1767786300536,0.98198322,3226.1,3225.2,0.90633031]
[1767786301059,0.98198322,3226.0,3225.4,0.01915746]
[1767786303759,4.08187097,3226.0,3225.4,0.01915746]
[1767786304268,0.94297729,3225.9,3225.4,0.01915746]
[1767786306368,4.04298349,3225.8,3225.4,0.01915746]
[1767786307337,0.94297729,3225.8,3225.4,0.01915746]
[1767786308455,4.04282886,3226.0,3225.4,0.01915746]
[1767786308662,0.94297729,3226.0,3225.4,0.01915746]
[1767786309673,0.94297729,3225.9,3225.4,0.01915746]
[1767786310574,4.04298349,3225.8,3225.4,0.01915746]
[1767786313682,0.94297729,3225.7,3225.4,0.01915746]
[1767786313856,0.94297729,3225.7,3224.9,0.002]
[1767786314380,0.94297729,3225.6,3224.9,0.002]
[1767786314565,0.94297729,3225.5,3224.9,0.002]
[1767786314878,0.94297729,3225.3,3224.9,0.002]
[1767786315081,0.94297729,3225.1,3224.9,0.002]
[1767786316859,3.10077519,3225.0,3224.9,0.002]
[1767786322286,4.04375248,3225.0,3224.7,1e-08]
[1767786322684,0.94297729,3224.9,3224.7,1e-08]
[1767786323775,4.04394479,3224.8,3224.7,1e-08]
[1767786330081,0.94297729,3224.7,3224.4,1e-08]
[1767786330291,4.04413712,3224.6,3224.4,1e-08]
[1767786330486,0.94297729,3224.5,3224.4,1e-08]
[1767786330692,0.94297729,3224.5,3223.7,3.10201516]
[1767786330693,0.94297729,3224.4,3223.7,0.96764125]
[1767786330904,0.94297729,3224.4,3223.8,0.96764125]
[1767786331914,0.71452388,3224.5,3223.8,0.96764125]
[1767786332110,0.71452388,3224.5,3223.6,0.002]
[1767786332111,0.71452388,3224.5,3224.0,0.97554585]
[1767786332708,3.81587543,3224.5,3224.0,0.97554585]
[1767786335710,6.91722698,3224.5,3224.0,0.97554585]
[1767786335914,0.6917227,3224.4,3224.0,0.002]
[1767786336394,1.62031595,3224.4,3224.0,0.002]
[1767786336596,0.92859325,3224.3,3224.0,0.002]
[1767786337206,0.92859325,3224.2,3224.0,0.002]
[1767786338118,3.79316869,3224.4,3224.0,0.002]
[1767786338322,0.47217619,3224.3,3224.0,0.002]
[1767786338693,0.6917227,3224.4,3224.0,0.002]
[1767786338897,0.93205679,3224.7,3224.0,0.97554585]
[1767786339124,0.001,3224.7,3224.0,0.97554585]
[1767786339821,0.001,3224.7,3224.1,0.97354585]
[1767786344316,0.001,3224.4,3224.1,0.97354585]
[1767786347334,0.001,3224.4,3224.0,0.002]
[1767786355858,0.001,3224.1,3224.0,0.002]
[1767786360761,0.001,3224.1,3223.6,0.002]
[1767786361663,0.96202741,3224.1,3223.6,0.002]
[1767786362046,3.10173697,3224.0,3223.6,0.002]
[1767786362244,0.96202741,3224.1,3223.6,0.002]
[1767786362864,3.10266586,3224.1,3223.6,0.002]
[1767786363071,0.001,3224.1,3223.6,0.002]
[1767786363274,3.10264936,3224.1,3223.6,0.002]
[1767786363470,0.90023732,3224.0,3223.6,0.002]
[1767786364172,1.30052599,3224.0,3223.6,0.002]
[1767786366059,1.30052599,3224.0,3223.3,0.94816325]
[1767786366060,3.50202564,3224.0,3223.3,0.94816325]
[1767786366261,0.40028867,3224.0,3223.3,0.94816325]
[1767786366467,3.10175881,3224.0,3223.3,0.94816325]
[1767786367362,7.10375494,3224.0,3223.3,0.94816325]
[1767786367578,0.90023732,3223.9,3223.3,0.002]
[1767786367767,0.90023732,3223.9,3223.6,0.002]
[1767786368156,0.90023732,3223.7,3223.6,0.002]
[1767786370386,4.00226294,3223.7,3223.6,0.002]
[1767786371583,3.1019654,3223.8,3223.6,0.002]
[1767786371962,3.10184997,3223.9,3223.6,0.002]
[1767786372281,3.50217358,3223.9,3223.6,0.002]
[1767786374385,6.60404746,3223.9,3223.6,0.002]
[1767786374957,7.50428478,3223.9,3223.6,0.002]
[1767786375164,0.90023732,3223.8,3223.3,0.002]
[1767786375363,0.75042848,3223.7,3223.3,0.002]
[1767786376589,3.10212185,3223.6,3223.3,0.002]
[1767786378092,3.85248836,3223.7,3223.3,0.002]
[1767786380619,0.75142848,3223.7,3223.3,0.002]
[1767786381111,0.001,3223.7,3223.3,0.94816325]
[1767786381715,3.10303986,3223.7,3223.3,0.94816325]
[1767786382822,0.001,3223.7,3223.3,0.94816325]
[1767786384309,0.90123732,3223.7,3223.3,0.002]
[1767786384508,0.001,3223.7,3223.3,0.94816325]
[1767786393009,0.001,3223.7,3223.6,0.002]
[1767786406797,0.95783885,3223.7,3223.6,0.002]
[1767786407521,0.001,3223.7,3223.6,0.002]
[1767786412629,0.001,3223.7,3223.3,0.002]
[1767786412928,0.95683885,3223.5,3222.7,0.002]
[1767786413131,0.95683885,3223.3,3222.7,0.002]
[1767786413628,7.16185249,3223.2,3222.7,0.002]
[1767786414697,0.95683885,3223.1,3222.7,0.002]
[1767786415624,3.10269934,3223.0,3222.7,0.002]
[1767786419925,0.93239743,3223.0,3222.7,0.002]
[1767786420125,0.93239743,3222.9,3222.7,0.002]
[1767786420958,0.93239743,3223.2,3222.7,0.002]
[1767786421173,3.91641413,3223.3,3222.7,0.98383711]
[1767786422666,3.10241413,3223.3,3222.7,0.98383711]
[1767786422945,6.20482826,3223.3,3222.7,0.98383711]
[1767786426860,7.93705022,3223.3,3222.7,0.98383711]
[1767786427848,7.93705022,3223.3,3222.7,0.002]
[1767786429622,7.93705022,3223.3,3223.0,0.002]
[1767786433154,0.919291,3223.2,3223.0,0.002]
[1767786433329,7.01775922,3223.3,3223.0,0.002]
[1767786433532,0.71958431,3223.2,3223.0,0.002]
[1767786436258,3.10260308,3223.1,3223.0,0.002]
[1767786438270,4.02189408,3223.1,3223.0,0.002]
[1767786439863,3.10260308,3223.1,3223.0,0.002]
[1767786442061,4.74140739,3223.2,3223.0,0.002]
[1767786442263,0.001,3223.4,3223.0,0.9345716]
[1767786444183,0.001,3223.7,3223.3,0.9325716]
[1767786444336,0.001,3223.7,3223.0,6.20737207]
[1767786444337,0.919291,3223.6,3223.0,6.20737207]
[1767786444541,0.919291,3223.6,3223.0,3.10467273]
[1767786444748,0.919291,3223.6,3223.1,0.62074575]
[1767786445116,0.919291,3223.6,3223.1,3.72327769]
[1767786445263,0.919291,3223.6,3223.1,0.62074575]
[1767786445442,0.001,3223.7,3223.1,1.55331735]
[1767786446069,3.10303623,3223.7,3223.1,1.55331735]
[1767786446250,3.10303623,3223.7,3223.1,0.9325716]
[1767786446944,3.10303623,3223.7,3223.0,0.002]
[1767786447360,3.10303623,3223.7,3223.0,0.9345716]
[1767786447763,3.05303623,3223.7,3223.0,0.9345716]
[1767786448142,4.02125905,3223.8,3223.0,0.9345716]
[1767786448342,4.02125905,3223.8,3223.1,1.33630719]
[1767786450874,0.919291,3223.7,3223.1,0.40373559]
[1767786451070,0.919291,3223.7,3223.0,0.002]
[1767786453182,4.02136312,3223.7,3223.0,0.002]
[1767786453482,0.001,3223.5,3223.0,0.94695324]
[1767786453868,0.001,3223.5,3223.0,0.002]
[1767786454053,0.95553056,3223.5,3223.0,0.002]
[1767786454252,0.001,3223.5,3223.0,0.002]
[1767786457077,0.001,3223.5,3223.0,0.94695324]
[1767786457868,0.001,3223.5,3223.1,0.94495324]
[1767786465194,0.001,3223.5,3223.3,0.002]
[1767786468577,0.95553056,3223.5,3223.3,0.002]
[1767786469578,0.001,3223.5,3223.3,0.002]
[1767786476101,0.95553056,3223.5,3223.0,0.002]
[1767786476674,0.001,3223.5,3223.0,0.002]
[1767786477003,0.95553056,3223.5,3223.0,0.002]
[1767786477796,0.001,3223.5,3223.3,0.002]
[1767786481405,0.814,3224.0,3223.3,1.00090566]
[1767786481795,0.94244704,3223.6,3223.0,0.002]
[1767786482109,0.16199845,3222.1,3221.7,0.002]
[1767786482307,0.16199845,3222.1,3221.7,0.16399973]
[1767786482510,0.16199845,3222.1,3221.7,0.002]
[1767786484801,3.26557571,3222.1,3221.7,0.002]
[1767786485126,0.16199845,3222.1,3221.7,0.002]
[1767786487485,0.12063615,3222.1,3221.7,0.95097339]
[1767786487691,0.814,3222.8,3221.8,0.98001193]
[1767786488017,0.814,3222.8,3221.8,0.94897339]
[1767786488018,1.75644704,3222.8,3221.8,0.94897339]
[1767786489010,3.10298817,3222.7,3221.8,0.94897339]
[1767786489218,6.20597634,3222.7,3221.8,0.94897339]
[1767786489419,6.20597634,3222.7,3222.0,0.002]
[1767786489617,7.14842338,3222.7,3222.0,0.002]
[1767786491391,0.94244704,3222.6,3222.0,0.002]
[1767786493941,3.10318076,3222.5,3222.0,0.002]
[1767786495443,4.0456278,3222.5,3222.0,0.002]
[1767786495815,7.14880856,3222.5,3222.0,0.002]
[1767786496020,7.86368942,3222.5,3222.0,0.002]
[1767786497018,4.76050866,3222.5,3222.0,0.002]
[1767786497325,7.86368942,3222.5,3222.0,0.002]
[1767786497749,0.94244704,3222.4,3222.0,0.002]
[1767786498235,3.10337336,3222.3,3222.0,0.002]
[1767786501743,0.001,3222.2,3222.0,0.002]
[1767786502736,0.94244704,3222.1,3221.7,0.002]
[1767786503640,0.94244704,3222.1,3221.6,0.002]
[1767786503641,0.94244704,3222.1,3221.6,1e-08]
[1767786504141,6.20732464,3222.0,3221.6,1e-08]
[1767786506113,3.10366232,3222.0,3221.6,1e-08]
[1767786506516,6.20732464,3222.0,3221.6,1e-08]
[1767786511245,0.94244704,3221.9,3221.6,1e-08]
[1767786512621,3.10385498,3221.8,3221.6,1e-08]
[1767786514047,3.10377438,3221.9,3221.6,1e-08]
[1767786514625,3.10377438,3221.9,3221.6,0.95149425]
[1767786515236,0.001,3222.0,3221.6,0.95149425]
[1767786515722,0.95251535,3222.0,3221.5,0.002]
[1767786515919,0.95151535,3221.9,3220.8,0.95149424]
[1767786516122,0.95151535,3221.8,3220.8,0.95149424]
[1767786517231,0.95151535,3221.6,3220.8,0.95149424]
[1767786519466,7.15980341,3221.5,3220.8,0.95149424]
[1767786522937,3.10414403,3221.5,3220.8,0.95149424]
[1767786523566,3.10414403,3221.5,3220.9,0.95149424]
[1767786524068,7.15922531,3221.8,3220.9,0.95149424]
[1767786525669,7.15922531,3221.8,3221.1,0.002]
[1767786526037,0.001,3221.5,3221.1,0.002]
[1767786530152,6.20928806,3221.5,3221.1,0.002]
[1767786530352,6.9253684,3221.5,3221.1,0.002]
[1767786531071,7.87688375,3221.5,3221.1,0.002]
[1767786531568,0.95151535,3221.4,3221.1,0.002]
[1767786532073,6.9253684,3221.5,3221.1,0.002]
[1767786532568,0.001,3221.5,3221.1,0.002]
[1767786533541,0.001,3222.0,3221.5,0.95149424]
[1767786533749,3.10376288,3221.9,3221.5,0.95149424]
[1767786534872,0.001,3222.0,3221.5,0.95149424]
[1767786537176,0.001,3222.2,3221.9,0.95149424]
[1767786540080,0.974486,3222.2,3221.4,0.97213238]
[1767786541279,0.973486,3222.1,3221.4,0.97213238]
[1767786542280,0.973486,3222.1,3221.4,0.002]
[1767786543378,4.07708417,3222.1,3221.4,0.002]
[1767786544167,6.92534343,3222.1,3221.4,0.002]
[1767786544371,0.99571338,3222.0,3221.4,0.002]
[1767786545357,6.92534343,3222.1,3221.4,0.002]
[1767786545358,0.99571338,3221.8,3221.4,0.002]
[1767786545767,0.99571338,3221.8,3221.1,0.002]
[1767786545971,0.99571338,3221.8,3221.0,0.002]
[1767786546159,0.99571338,3221.6,3220.8,0.002]
[1767786546484,0.99571338,3221.6,3220.8,0.93476547]
[1767786547197,0.99571338,3221.6,3220.8,0.002]
[1767786547560,0.99571338,3221.4,3220.8,0.002]
[1767786550221,3.10433675,3221.3,3220.8,0.002]
[1767786550392,4.10005013,3221.3,3220.8,0.002]
[1767786550565,4.10105013,3221.3,3220.8,0.002]
[1767786550963,0.99571338,3221.2,3220.8,0.002]
[1767786551891,0.99571338,3221.2,3220.4,0.002]
[1767786552490,0.99571338,3221.0,3220.4,0.002]
[1767786554184,0.99571338,3221.0,3220.2,0.93276547]
[1767786554715,4.10043566,3220.9,3220.2,0.93276547]
[1767786555008,4.10043566,3220.9,3219.9,3.10565135]
[1767786555009,0.99571338,3220.8,3219.9,3.10565135]
[1767786555220,0.99571338,3220.8,3219.9,0.93276547]
[1767786555408,0.99571338,3220.8,3219.8,0.002]
[1767786556895,0.99571338,3220.6,3219.8,0.002]
[1767786557087,0.99571338,3220.4,3219.8,0.002]
[1767786557409,0.99571338,3220.2,3219.8,0.002]
[1767786558911,4.10120699,3220.1,3219.8,0.002]
[1767786559410,0.99571338,3220.1,3219.8,0.002]
[1767786560318,1.17668472,3220.3,3219.8,0.002]
[1767786560610,3.28629993,3220.3,3219.8,0.002]
[1767786560800,0.18097134,3220.3,3219.8,0.002]
[1767786561116,3.28628025,3220.3,3219.8,0.002]
[1767786561614,3.28629055,3220.3,3219.8,0.002]
[1767786561986,0.41002906,3220.2,3219.8,0.002]
[1767786562321,1.40574244,3220.2,3220.1,0.002]
[1767786562524,0.99571338,3220.1,3219.8,0.002]
[1767786563631,0.99571338,3220.2,3219.8,0.002]
[1767786565120,3.10549361,3220.1,3219.8,0.002]
[1767786565322,3.84424944,3220.1,3219.8,0.002]
[1767786566818,0.99571338,3220.0,3219.8,0.002]
[1767786567025,0.99571338,3220.0,3219.5,0.002]
[1767786567319,3.84424944,3220.1,3219.5,0.002]
[1767786567320,4.10139989,3219.9,3219.5,0.002]
[1767786569820,0.99571338,3219.8,3219.5,0.002]
[1767786570123,0.99571338,3219.7,3218.9,0.93276547]
[1767786570322,0.99571338,3219.7,3219.0,0.93276547]
[1767786570908,0.99571338,3219.7,3218.8,3.10668782]
[1767786570909,4.10161556,3219.7,3218.8,3.10668782]
[1767786571226,0.99571338,3220.1,3218.9,0.93276547]
[1767786571425,3.10547359,3220.2,3219.0,0.93276547]
[1767786571595,3.10547359,3220.2,3219.2,0.93276547]
[1767786571796,0.9581968,3220.1,3219.2,0.93276547]
[1767786572025,0.9581968,3220.1,3219.1,0.1778832]
[1767786572324,0.9581968,3220.1,3218.9,1.7423596]
[1767786572529,0.9581968,3220.1,3219.0,0.9273596]
[1767786573033,3.10559006,3220.0,3219.0,4.03390262]
[1767786573209,3.10559006,3220.0,3219.1,0.9273596]
[1767786573404,0.9581968,3220.1,3219.1,0.9273596]
[1767786573718,0.9581968,3220.1,3219.3,0.9273596]
[1767786574730,4.06371723,3220.1,3219.3,0.9293596]
[1767786575430,4.06371723,3220.1,3219.4,0.9273596]
[1767786576424,0.9581968,3220.0,3219.3,3.108247]
[1767786576631,0.9581968,3220.0,3219.3,0.002]
[1767786576926,0.9581968,3220.0,3219.4,0.38223809]
[1767786579831,3.10552183,3220.1,3219.4,1.30959769]
[1767786580032,4.06371863,3220.1,3219.4,1.30959769]
[1767786586326,4.06371863,3220.1,3219.4,0.9273596]
[1767786586917,0.001,3219.8,3219.4,0.9273596]
[1767786587248,0.001,3219.8,3219.3,0.002]
[1767786587249,0.9591968,3219.8,3219.3,0.002]
[1767786587760,0.9581968,3219.6,3219.3,0.002]
[1767786588921,0.9581968,3219.5,3219.0,0.002]
[1767786589631,0.40650762,3219.6,3219.0,0.002]
[1767786589632,4.06436565,3219.4,3219.0,0.002]
[1767786589826,0.9581968,3219.3,3219.0,0.002]
[1767786590452,4.0643068,3219.5,3219.0,0.002]
[1767786591243,0.9581968,3219.4,3218.7,0.9273596]
[1767786591423,1.7731968,3219.3,3218.7,0.9273596]
[1767786591836,3.10636182,3219.2,3218.7,0.9273596]
[1767786592051,0.815,3219.6,3218.7,0.9273596]
[1767786592352,0.815,3219.6,3218.8,0.9273596]
[1767786592559,0.9581968,3219.5,3218.6,3.10687617]
[1767786593060,0.9581968,3219.5,3218.5,4.03636253]
[1767786593358,0.9581968,3219.5,3218.5,0.9293596]
[1767786594475,3.10616885,3219.4,3218.6,0.9273596]
[1767786594629,3.10616885,3219.4,3218.8,0.9273596]
[1767786594830,1.30300762,3219.6,3218.8,0.9273596]
[1767786594831,0.815,3219.3,3218.8,0.9273596]
[1767786596462,0.9591968,3219.8,3218.8,0.9273596]
[1767786596757,4.87907622,3219.7,3218.8,0.9273596]
[1767786596959,0.9581968,3219.6,3218.8,0.9273596]
[1767786597135,1.7731968,3219.6,3218.8,0.9273596]
[1767786597663,0.9581968,3219.5,3218.8,0.9273596]
[1767786598766,3.10607237,3219.5,3218.8,0.9273596]
[1767786599558,3.10607237,3219.5,3219.0,0.002]
[1767786600233,0.001,3219.8,3219.0,0.90204005]
[1767786600535,0.001,3219.8,3218.6,0.002]
[1767786600536,0.94944396,3219.4,3218.6,0.002]
[1767786600749,0.94944396,3219.2,3218.6,0.002]
[1767786601250,1.76444396,3219.7,3218.6,0.90204005]
[1767786601450,0.94944396,3219.6,3218.6,4.00897625]
[1767786601656,0.001,3219.8,3218.9,0.91367616]
[1767786601852,3.10679532,3219.8,3219.1,0.91367616]
[1767786602360,0.001,3219.8,3219.1,0.91367616]
[1767786603478,0.98114096,3219.8,3219.1,0.91367616]
[1767786603643,4.08525309,3220.5,3219.8,0.91367616]
[1767786603841,0.40852531,3220.4,3219.8,0.91251244]
[1767786604041,0.815,3220.8,3219.8,0.91251244]
[1767786604235,3.10491508,3220.7,3219.8,0.91251244]
[1767786605158,3.10491508,3220.7,3219.9,0.91367616]
[1767786606137,3.10484125,3220.8,3219.9,0.91367616]
[1767786606334,3.41540351,3220.7,3219.9,0.91367616]
[1767786607256,0.98014096,3220.6,3219.7,8.01465356]
[1767786607565,0.98014096,3220.6,3219.7,0.91367616]
[1767786608464,0.98014096,3220.5,3219.7,4.01954819]
[1767786609555,1.29062509,3220.7,3219.8,0.91367616]
[1767786609748,0.98014096,3220.6,3219.8,0.91367616]
[1767786610966,0.98014096,3220.6,3219.8,4.01942338]
[1767786611961,0.001,3220.4,3219.8,4.01942338]
[1767786614471,0.001,3220.4,3219.8,0.91367616]
[1767786615968,0.001,3220.4,3219.8,4.01944418]
[1767786617054,0.001,3220.4,3219.8,5.13148612]
[1767786619372,0.001,3220.4,3219.8,2.0257181]
[1767786619559,0.001,3220.4,3219.8,4.0194268]
[1767786621446,0.001,3220.4,3219.8,0.91367616]
[1767786622048,0.001,3220.4,3219.8,4.01943437]
[1767786623371,0.001,3220.4,3219.8,0.91367616]
[1767786626881,0.001,3220.4,3219.8,4.01945303]
[1767786627249,0.001,3220.4,3219.8,0.91367616]
[1767786628851,0.001,3220.4,3219.8,4.01945411]
[1767786629381,0.001,3220.4,3219.8,0.91367616]
[1767786632982,0.001,3220.4,3219.8,4.01945245]
[1767786633180,0.001,3220.4,3219.8,4.68063513]
[1767786633686,0.001,3220.4,3219.9,0.99180868]
[1767786635183,0.001,3220.1,3219.9,0.99180868]
[1767786635488,0.001,3220.4,3219.9,0.99180868]
[1767786635783,0.90150298,3220.4,3219.8,0.66118268]
[1767786636456,0.90150298,3220.4,3219.8,3.76691833]
[1767786636663,0.90150298,3220.4,3219.9,1.08678585]
[1767786638474,0.90150298,3220.4,3219.8,3.76691833]
[1767786646894,0.90150298,3220.4,3220.1,0.002]
[1767786662114,0.90150298,3220.4,3219.4,0.815]
[1767786662115,0.94938447,3220.1,3219.0,0.93449684]
[1767786662313,0.94938447,3220.1,3218.8,3.106732]
[1767786662314,0.94938447,3220.1,3219.1,0.93449684]
[1767786662513,0.94938447,3220.1,3219.4,0.93449684]
[1767786662719,0.5,3220.1,3219.5,0.96555756]
[1767786662918,0.5,3220.1,3219.6,0.93449684]
[1767786663122,0.5,3220.1,3219.4,4.04064353]
[1767786663412,1.44938447,3220.1,3219.5,0.40406435]
[1767786663625,0.5,3220.1,3219.6,0.93449684]
[1767786664201,3.6055072,3220.1,3219.6,0.93449684]
[1767786664389,4.55489167,3220.1,3219.3,0.93449684]
[1767786666111,0.94938447,3220.0,3219.3,0.93449684]
[1767786666509,0.94938447,3220.0,3219.0,1.74949684]
[1767786667419,0.94938447,3219.8,3218.8,0.93449684]
[1767786667606,0.94938447,3219.8,3218.6,0.93649684]
[1767786667820,0.94938447,3219.7,3218.6,0.93649684]
[1767786669599,0.94938447,3219.5,3218.7,0.03106844]
[1767786669803,6.21195178,3219.6,3218.6,0.93649684]
[1767786669804,1.76338447,3219.4,3218.6,0.93649684]
[1767786669998,6.21195178,3219.6,3218.6,0.002]
[1767786669999,0.94938447,3219.3,3218.6,0.002]
[1767786671323,0.94938447,3219.3,3218.1,0.93449684]
[1767786671524,0.94938447,3219.1,3218.1,0.93449684]
[1767786671821,0.94938447,3219.1,3219.0,0.002]
[1767786672122,0.94938447,3219.1,3217.8,0.93449684]
[1767786672319,0.94938447,3219.1,3217.9,3.10761469]
[1767786672624,0.94938447,3219.1,3217.8,0.93449684]
[1767786672625,0.94938447,3219.1,3217.8,4.04218365]
[1767786673310,0.94938447,3219.1,3217.8,0.93449684]
[1767786673501,0.94938447,3218.9,3217.8,0.93449684]
[1767786673707,0.94938447,3218.7,3217.8,0.93449684]
[1767786675019,0.94938447,3218.7,3217.7,3.10977242]
[1767786676020,0.94938447,3218.6,3217.7,0.93649684]
[1767786677160,0.94938447,3218.6,3217.7,0.002]
[1767786677302,0.94938447,3218.6,3217.4,3.11007087]
[1767786677303,0.94938447,3218.4,3217.4,0.002]
[1767786677504,0.94938447,3218.4,3217.4,3.11008178]
[1767786678238,0.94938447,3218.3,3217.4,3.14116277]
[1767786678445,0.94938447,3218.3,3217.4,3.11008178]
[1767786678731,0.94938447,3218.3,3217.4,0.002]
[1767786678898,0.71638378,3218.2,3217.4,0.93649684]
[1767786679306,0.71638378,3218.2,3217.5,0.93449684]
[1767786680197,4.05661113,3218.4,3217.5,0.93449684]
[1767786680429,0.94938447,3218.3,3217.4,0.002]
[1767786681520,0.94938447,3218.1,3217.4,0.002]
[1767786682412,0.94938447,3218.0,3216.9,4.04305085]
[1767786682616,0.94938447,3217.8,3216.9,4.04305085]
[1767786682807,0.94938447,3217.8,3217.0,0.93449684]
[1767786683137,0.94938447,3218.1,3217.0,0.93449684]
[1767786683354,1.76438447,3218.6,3217.8,0.93449684]
[1767786683553,0.17643845,3218.5,3217.8,0.93449684]
[1767786683718,0.94938447,3218.6,3217.8,0.93449684]
[1767786684040,0.94938447,3218.8,3217.8,0.93449684]
[1767786684418,0.94938447,3218.8,3217.9,0.93449684]
[1767786685603,0.94938447,3219.0,3217.9,0.93449684]
[1767786686005,0.94938447,3219.4,3217.9,0.965573]
[1767786686209,0.94938447,3219.3,3218.1,0.93449684]
[1767786686513,0.94938447,3219.3,3218.0,1.02886405]
[1767786686514,0.94938447,3219.2,3218.3,0.93449684]
[1767786687122,1.76438447,3219.4,3218.3,0.93449684]
[1767786687506,0.94938447,3219.7,3218.3,0.93449684]
[1767786687708,1.76438447,3219.9,3218.3,0.93449684]
[1767786688002,0.17643845,3219.8,3218.5,0.93449684]
[1767786688228,0.17643845,3219.8,3218.6,0.93449684]
[1767786688428,1.44938447,3220.1,3218.8,0.93449684]
[1767786688741,0.5,3220.1,3218.8,0.93449684]
[1767786690105,0.94938447,3220.0,3218.8,1.74949684]
[1767786690512,0.94938447,3220.0,3218.9,3.10665134]
[1767786691737,0.94938447,3220.0,3218.8,4.04120996]
[1767786691937,0.90238669,3219.8,3218.8,0.93449684]
[1767786692142,0.90238669,3219.8,3218.5,0.99722843]
[1767786692340,0.90238669,3219.6,3218.5,0.99722843]
[1767786692510,0.90238669,3219.5,3218.4,3.10710218]
[1767786692710,0.90238669,3219.3,3218.4,3.10710218]
[1767786692948,0.90238669,3219.3,3218.4,3.10712865]
[1767786693538,0.90238669,3219.3,3218.3,0.99722843]
[1767786694113,0.90238669,3219.3,3218.3,4.10437956]
[1767786694337,0.90238669,3219.3,3218.3,3.10715113]
[1767786694608,0.90238669,3219.3,3218.1,3.10739684]
[1767786695361,0.90238669,3219.3,3217.8,1.81222843]
[1767786695362,0.90238669,3219.1,3217.8,1.81222843]
[1767786695649,0.90238669,3218.9,3217.8,1.81222843]
[1767786696006,0.90238669,3218.9,3217.8,4.91987694]
[1767786696213,0.90238669,3218.7,3217.9,0.99722843]
[1767786696413,0.17183867,3218.8,3218.2,4.1045555]
[1767786697031,1.07422536,3218.8,3217.8,0.815]
[1767786697253,1.07422536,3218.8,3218.0,3.10745014]
[1767786698345,1.07422536,3218.8,3218.0,4.10467857]
[1767786698545,1.07422536,3218.8,3218.1,3.10742038]
[1767786699262,1.07422536,3218.8,3218.0,0.99722843]
[1767786699263,1.07422536,3218.8,3218.0,4.10472882]
[1767786701466,1.07422536,3218.8,3218.0,0.99722843]
[1767786701673,1.07422536,3218.8,3217.9,3.10757571]
[1767786702673,1.07422536,3218.8,3217.8,4.91990463]
[1767786703046,1.07422536,3218.8,3217.8,1.81222843]
[1767786703280,0.90238669,3219.7,3218.6,0.99722843]
[1767786703449,0.90238669,3219.7,3218.7,1.02829687]
[1767786703639,0.90238669,3219.7,3218.7,0.99722843]
[1767786704069,0.90238669,3219.7,3218.7,1.02829687]
[1767786704264,0.5,3220.1,3218.7,0.99722843]
[1767786704265,0.90238669,3220.0,3218.7,0.99722843]
[1767786704565,0.90238669,3219.8,3218.7,0.99722843]
[1767786704939,3.60550932,3220.1,3218.9,0.99722843]
[1767786704940,1.40238669,3220.1,3218.9,0.99722843]
[1767786705134,0.5,3220.1,3218.9,0.99722843]
[1767786707044,0.5,3220.1,3219.1,0.99722843]
[1767786707759,0.001,3219.4,3219.1,0.99722843]
[1767786707939,0.90238669,3220.0,3219.2,0.72103381]
[1767786709373,0.90238669,3220.0,3219.3,3.10626533]
[1767786709772,0.90238669,3220.0,3219.3,6.21253066]
[1767786712651,0.5,3220.1,3219.3,7.20975909]
[1767786712850,0.5,3220.1,3219.5,0.99722843]
[1767786714483,0.5,3220.1,3219.6,3.10597589]
[1767786716152,0.5,3220.1,3219.5,4.103265]
[1767786717279,0.90238669,3220.0,3219.4,0.79307929]
[1767786717487,0.90238669,3219.8,3218.9,3.10662569]
[1767786717654,0.90238669,3219.8,3218.8,4.10394412]
[1767786717851,0.90238669,3219.8,3218.9,3.10664021]
[1767786718776,0.90238669,3219.8,3219.0,3.10652485]
[1767786718950,0.5,3220.1,3219.1,1.02829301]
[1767786719152,0.5,3220.1,3219.3,0.99722843]
[1767786719383,0.5,3220.1,3219.7,0.99722843]
[1767786720458,0.001,3220.4,3219.7,0.99722843]
[1767786720687,0.001,3220.4,3219.8,3.10578296]